fUST/lending_fUST_20250328
["ID","MTS","AMOUNT","RATE_DAILY","PERIOD"]
[356762982,1743137271821,-203.27148998,0.0003603,13]
[356762983,1743137271844,-160.0,0.00036063,3]
[356762984,1743137271871,-203.27148998,0.00036161,13]
[356762985,1743137271892,-500.0,0.00036164,17]
[356762986,1743137271913,-374.23637441,0.00036164,17]
[356762987,1743137271935,-500.0,0.00036164,17]
[356762988,1743137271958,-500.0,0.00036164,17]
[356762989,1743137271982,-500.0,0.00036164,17]
[356762990,1743137272004,-500.0,0.00036164,17]
[356762991,1743137272025,-500.0,0.00036164,17]
[356762992,1743137272046,-532.22712137,0.00036164,17]
[356762993,1743137272066,-500.0,0.00036164,17]
[356762994,1743137272086,-500.0,0.00036164,17]
[356762995,1743137272107,-509.10121416,0.00036164,17]
[356762996,1743137272127,-500.0,0.00036164,17]
[356762997,1743137272148,-190.34386664,0.00036164,17]
[356762998,1743137272169,-500.0,0.00036164,17]
[356762999,1743137272189,-500.0,0.00036164,17]
[356763000,1743137272209,-309.92033278,0.00036164,17]
[356763001,1743137272231,-316.4852567,0.00036164,17]
[356763002,1743137272252,-440.73258094,0.00036164,17]
[356763003,1743137272273,-532.14,0.00036164,17]
[356763004,1743137272293,-500.0,0.00036164,17]
[356763005,1743137272314,-500.0,0.00036164,17]
[356763006,1743137272335,-578.75204263,0.00036164,17]
[356763007,1743137272356,-641.1,0.00036164,17]
[356763008,1743137272377,-500.0,0.00036164,17]
[356763009,1743137272398,-500.0,0.00036164,17]
[356763010,1743137272418,-500.0,0.00036164,17]
[356763011,1743137272440,-500.0,0.00036164,17]
[356763012,1743137272461,-1147.72,0.00036164,17]
[356763013,1743137272485,-771.65,0.00036164,17]
[356763014,1743137272506,-500.0,0.00036164,17]
[356763015,1743137272527,-520.67776239,0.00036164,120]
[356763016,1743137272547,-500.0,0.00036164,17]
[356763017,1743137272569,-500.0,0.00036164,17]
[356763018,1743137272591,-500.0,0.00036164,17]
[356763019,1743137272612,-500.0,0.00036164,17]
[356763020,1743137272633,-554.96750084,0.00036164,17]
[356763021,1743137272654,-555.04,0.00036164,7]
[356763022,1743137272675,-828.56,0.00036164,17]
[356763023,1743137272695,-500.0,0.00036164,17]
[356763024,1743137272717,-500.0,0.00036164,17]
[356763025,1743137272739,-500.0,0.00036164,17]
[356763026,1743137272759,-500.0,0.00036164,17]
[356763027,1743137272781,-668.43,0.00036164,17]
[356763028,1743137272802,-543.69104147,0.00036164,17]
[356763029,1743137272825,-580.2,0.00036164,17]
[356763030,1743137272850,-500.0,0.00036164,17]
[356763031,1743137272872,-2237.94,0.00036164,17]
[356763032,1743137272893,-500.0,0.00036164,17]
[356763033,1743137272917,-500.0,0.00036164,17]
[356763034,1743137272940,-500.0,0.00036164,17]
[356763035,1743137272964,-961.87,0.00036164,17]
[356763036,1743137272990,-500.0,0.00036164,17]
[356763037,1743137273013,-500.0,0.00036164,17]
[356763038,1743137273038,-500.0,0.00036164,17]
[356763039,1743137273061,-979.72,0.00036164,17]
[356763040,1743137273083,-510.24267434,0.00036164,17]
[356763041,1743137273105,-645.9393274,0.00036164,17]
[356763042,1743137273127,-545.43,0.00036164,17]
[356763043,1743137273149,-500.0,0.00036164,17]
[356763044,1743137273171,-500.0,0.00036164,17]
[356763045,1743137273194,-1073.92,0.00036164,17]
[356763046,1743137273215,-500.0,0.00036164,17]
[356763047,1743137273242,-500.0,0.00036164,17]
[356763048,1743137273264,-500.0,0.00036164,17]
[356763049,1743137273286,-500.0,0.00036164,17]
[356763050,1743137273308,-500.0,0.00036164,17]
[356763051,1743137273331,-700.19,0.00036164,17]
[356763052,1743137273355,-500.0,0.00036164,17]
[356763053,1743137273381,-777.25,0.00036164,17]
[356763054,1743137273404,-500.0,0.00036164,17]
[356763055,1743137273426,-500.0,0.00036164,17]
[356763056,1743137273448,-500.0,0.00036164,17]
[356763057,1743137273473,-500.0,0.00036164,17]
[356763058,1743137273499,-537.71,0.00036164,17]
[356763059,1743137273522,-500.0,0.00036164,17]
[356763060,1743137273544,-568.93468344,0.00036164,17]
[356763061,1743137273569,-334.80987711,0.00036164,17]
[356763062,1743137273592,-500.0,0.00036164,17]
[356763063,1743137273615,-1980.27,0.00036164,17]
[356763064,1743137273638,-1838.3,0.00036164,17]
[356763065,1743137273660,-554.71,0.00036164,17]
[356763066,1743137273681,-313.03010145,0.00036164,17]
[356763067,1743137273703,-531.94064896,0.00036164,17]
[356763068,1743137273728,-500.0,0.00036164,17]
[356763069,1743137273749,-500.0,0.00036164,17]
[356763070,1743137273771,-500.0,0.00036164,17]
[356763071,1743137273794,-815.32,0.00036164,17]
[356763072,1743137273816,-500.0,0.00036164,17]
[356763073,1743137273842,-500.0,0.00036164,17]
[356763074,1743137273865,-990.28,0.00036164,17]
[356763075,1743137273887,-500.0,0.00036164,17]
[356763076,1743137273908,-500.0,0.00036164,17]
[356763077,1743137273931,-500.0,0.00036164,17]
[356763078,1743137273953,-500.0,0.00036164,17]
[356763079,1743137273979,-500.0,0.00036164,17]
[356763080,1743137274000,-500.0,0.00036164,17]
[356763081,1743137274156,-1012.51,0.00036164,17]
[356763082,1743137274184,-500.0,0.00036164,17]
[356763083,1743137274205,-500.0,0.00036164,17]
[356763084,1743137274230,-500.0,0.00036164,17]
[356763085,1743137274251,-283.39138059,0.00036164,17]
[356763086,1743137274273,-500.0,0.00036164,17]
[356763087,1743137274295,-500.0,0.00036164,17]
[356763088,1743137274317,-500.0,0.00036164,17]
[356763089,1743137274339,-1544.99,0.00036164,17]
[356763090,1743137274361,-500.0,0.00036164,17]
[356763091,1743137274384,-547.93450696,0.00036164,17]
[356763092,1743137274405,-500.0,0.00036164,17]
[356763093,1743137274426,-500.0,0.00036164,17]
[356763094,1743137274448,-500.0,0.00036164,7]
[356763095,1743137274469,-519.41475274,0.00036164,17]
[356763096,1743137274493,-500.0,0.00036164,17]
[356763097,1743137274515,-619.42726983,0.00036164,17]
[356763098,1743137274535,-500.0,0.00036164,17]
[356763099,1743137274556,-533.54278254,0.00036164,17]
[356763100,1743137274577,-500.0,0.00036164,17]
[356763101,1743137274598,-500.0,0.00036164,17]
[356763102,1743137274619,-500.0,0.00036164,17]
[356763103,1743137274641,-500.0,0.00036164,17]
[356763104,1743137274661,-500.0,0.00036164,17]
[356763105,1743137274682,-500.0,0.00036164,17]
[356763106,1743137274702,-500.0,0.00036164,17]
[356763107,1743137274726,-1579.03,0.00036164,17]
[356763108,1743137274746,-559.58,0.00036164,17]
[356763109,1743137274768,-500.0,0.00036164,17]
[356763110,1743137274789,-500.0,0.00036164,17]
[356763111,1743137274811,-1530.99,0.00036164,17]
[356763112,1743137274835,-500.0,0.00036164,17]
[356763113,1743137274855,-500.0,0.00036164,17]
[356763114,1743137274877,-500.0,0.00036164,17]
[356763115,1743137274898,-500.0,0.00036164,17]
[356763116,1743137274922,-594.41172939,0.00036164,17]
[356763117,1743137274943,-500.0,0.00036164,17]
[356763118,1743137274964,-500.0,0.00036164,17]
[356763119,1743137274989,-500.0,0.00036164,17]
[356763120,1743137275011,-500.0,0.00036164,17]
[356763121,1743137275033,-500.0,0.00036164,17]
[356763122,1743137275055,-500.0,0.00036164,17]
[356763123,1743137275076,-500.0,0.00036164,17]
[356763124,1743137275098,-500.0,0.00036164,17]
[356763125,1743137275120,-500.0,0.00036164,17]
[356763126,1743137275141,-500.0,0.00036164,17]
[356763127,1743137275161,-500.0,0.00036164,17]
[356763128,1743137275181,-500.0,0.00036164,17]
[356763129,1743137275203,-587.32761431,0.00036164,17]
[356763130,1743137275230,-500.0,0.00036164,17]
[356763131,1743137275252,-500.0,0.00036164,17]
[356763132,1743137275273,-500.0,0.00036164,17]
[356763133,1743137275294,-500.0,0.00036164,17]
[356763134,1743137275315,-500.0,0.00036164,17]
[356763135,1743137275336,-500.0,0.00036164,17]
[356763136,1743137275357,-500.0,0.00036164,17]
[356763137,1743137275378,-500.0,0.00036164,17]
[356763138,1743137275401,-510.9124203,0.00036164,17]
[356763139,1743137275424,-500.0,0.00036164,17]
[356763140,1743137275445,-500.0,0.00036164,17]
[356763141,1743137275467,-500.0,0.00036164,5]
[356763142,1743137275489,-500.0,0.00036164,17]
[356763143,1743137275510,-500.0,0.00036164,17]
[356763144,1743137275530,-609.11,0.00036164,17]
[356763145,1743137275550,-500.0,0.00036164,17]
[356763146,1743137275571,-500.0,0.00036164,17]
[356763147,1743137275592,-726.06,0.00036164,17]
[356763148,1743137275612,-544.86588361,0.00036164,17]
[356763149,1743137275633,-500.0,0.00036164,17]
[356763150,1743137275653,-517.62058288,0.00036164,17]
[356763151,1743137275674,-542.27821347,0.00036164,17]
[356763152,1743137275696,-500.0,0.00036164,17]
[356763153,1743137275717,-500.0,0.00036164,17]
[356763154,1743137275741,-500.0,0.00036164,17]
[356763155,1743137275763,-500.0,0.00036164,17]
[356763156,1743137275784,-500.0,0.00036164,17]
[356763157,1743137275805,-500.0,0.00036164,17]
[356763158,1743137275826,-500.0,0.00036164,17]
[356763159,1743137275851,-500.0,0.00036164,17]
[356763160,1743137275872,-500.0,0.00036164,17]
[356763161,1743137275894,-500.0,0.00036164,17]
[356763162,1743137275916,-278.54695418,0.00036164,17]
[356763163,1743137275938,-500.0,0.00036164,17]
[356763164,1743137275959,-500.0,0.00036164,17]
[356763165,1743137275982,-500.0,0.00036164,17]
[356763166,1743137276003,-2011.63,0.00036164,17]
[356763167,1743137276024,-759.65,0.00036164,17]
[356763168,1743137276046,-285.75992907,0.00036164,17]
[356763169,1743137276066,-500.0,0.00036164,17]
[356763170,1743137276087,-425.19672636,0.00036164,17]
[356763171,1743137276108,-519.18,0.00036164,17]
[356763172,1743137276129,-687.86,0.00036164,17]
[356763173,1743137276151,-161.22466016,0.00036164,17]
[356763174,1743137276172,-500.0,0.00036164,17]
[356763175,1743137276198,-537.27066632,0.00036164,17]
[356763176,1743137276219,-1981.89,0.00036164,17]
[356763177,1743137276241,-1186.13,0.00036164,17]
[356763178,1743137276262,-500.0,0.00036164,17]
[356763179,1743137276283,-500.0,0.00036164,17]
[356763180,1743137276304,-500.0,0.00036164,17]
[356763181,1743137276326,-500.0,0.00036164,17]
[356763182,1743137276347,-519.87689974,0.00036164,17]
[356763183,1743137276368,-2282.69,0.00036164,17]
[356763184,1743137276388,-500.0,0.00036164,17]
[356763185,1743137276410,-500.0,0.00036164,17]
[356763186,1743137276431,-500.0,0.00036164,17]
[356763187,1743137276452,-1906.12286354,0.00036164,17]
[356763204,1743137350273,-168.19779738,0.00019178,2]
[356763262,1743137433366,-530.87020262,0.00019178,2]
[356763263,1743137433375,-237.45586339,0.00035516,2]
[356763264,1743137433385,-9244.01710299,0.00035616,2]
[356763265,1743137433398,-1037.90316198,0.00035616,2]
[356763266,1743137435425,-8635.75025375,0.00035616,2]
[356763285,1743137438413,-4288.4908553,0.00035616,2]
[356763365,1743137446250,-26793.83862598,0.00035616,2]
[356763367,1743137446260,-521.49,0.00035616,17]
[356763368,1743137446269,-500.0,0.00035616,17]
[356763370,1743137446278,-1364.9,0.00035616,17]
[356763372,1743137446288,-553.56,0.00035616,17]
[356763373,1743137446298,-706.84,0.00035616,17]
[356763375,1743137446308,-500.0,0.00035616,17]
[356763376,1743137446319,-507.67,0.00035616,17]
[356763378,1743137446328,-6636.89,0.00035616,17]
[356763380,1743137446339,-500.0,0.00035616,17]
[356763382,1743137446349,-2915.13,0.00035616,17]
[356763385,1743137446361,-841.64,0.00035616,17]
[356763386,1743137446372,-500.0,0.00035616,17]
[356763393,1743137446461,-84063.95693002,0.00035616,7]
[356763501,1743137447756,-8718.482314,0.00035616,7]
[356763899,1743137451851,-88555.060022,0.00035616,7]
[356763917,1743137452037,-1930.80000004,0.00035616,7]
[356764061,1743137453583,-13781.895832,0.00035616,7]
[356764064,1743137453594,-3568.89105872,0.00035616,7]
[356764100,1743137453953,-93990.30384322,0.00035616,7]
[356764102,1743137453964,-500.0,0.00035616,17]
[356764104,1743137453974,-1296.17,0.00035616,17]
[356764106,1743137453984,-500.0,0.00035616,17]
[356764108,1743137453993,-6362.21,0.00035616,17]
[356764110,1743137454003,-500.0,0.00035616,17]
[356764112,1743137454012,-1453.98,0.00035616,17]
[356764114,1743137454021,-500.0,0.00035616,17]
[356764116,1743137454031,-500.0,0.00035616,17]
[356764118,1743137454040,-759.11,0.00035616,17]
[356764120,1743137454049,-500.0,0.00035616,17]
[356764122,1743137454058,-8970.95,0.00035616,17]
[356764124,1743137454068,-1223.93,0.00035616,17]
[356764126,1743137454077,-857.26,0.00035616,17]
[356764127,1743137454086,-645.08,0.00035616,17]
[356764129,1743137454095,-500.0,0.00035616,17]
[356764131,1743137454104,-6513.94,0.00035616,17]
[356764133,1743137454114,-500.0,0.00035616,17]
[356764136,1743137454123,-500.0,0.00035616,17]
[356764137,1743137454133,-954.66,0.00035616,17]
[356764139,1743137454142,-514.14787558,0.00035616,17]
[356764141,1743137454151,-1674.47,0.00035616,17]
[356764143,1743137454161,-680.1,0.00035616,17]
[356764145,1743137454170,-3479.2,0.00035616,17]
[356764147,1743137454179,-500.0,0.00035616,17]
[356764149,1743137454189,-28589.62,0.00035616,17]
[356764151,1743137454198,-684.53,0.00035616,17]
[356764153,1743137454207,-500.0,0.00035616,17]
[356764155,1743137454217,-500.0,0.00035616,17]
[356764157,1743137454226,-500.0,0.00035616,17]
[356764159,1743137454237,-500.0,0.00035616,17]
[356764161,1743137454246,-500.0,0.00035616,17]
[356764163,1743137454256,-2197.23,0.00035616,17]
[356764165,1743137454266,-724.99,0.00035616,17]
[356764167,1743137454275,-500.0,0.00035616,17]
[356764169,1743137454285,-500.0,0.00035616,17]
[356764171,1743137454294,-500.0,0.00035616,17]
[356764173,1743137454303,-1732.74,0.00035616,17]
[356764175,1743137454312,-3145.72,0.00035616,17]
[356764177,1743137454323,-500.0,0.00035616,17]
[356764179,1743137454332,-7662.24,0.00035616,17]
[356764181,1743137454342,-160.382396,0.00035616,14]
[356764183,1743137454351,-500.0,0.00035616,17]
[356764185,1743137454360,-500.0,0.00035616,17]
[356764187,1743137454371,-160.382396,0.00035616,14]
[356764189,1743137454380,-160.382396,0.00035616,14]
[356764191,1743137454390,-160.382396,0.00035616,14]
[356764193,1743137454399,-160.382396,0.00035616,14]
[356764195,1743137454408,-8045.31,0.00035616,17]
[356764197,1743137454418,-160.382396,0.00035616,14]
[356764199,1743137454428,-160.382396,0.00035616,14]
[356764201,1743137454437,-160.382396,0.00035616,14]
[356764203,1743137454446,-160.382396,0.00035616,14]
[356764205,1743137454455,-160.382396,0.00035616,14]
[356764207,1743137454464,-500.0,0.00035616,17]
[356764209,1743137454473,-160.382396,0.00035616,14]
[356764211,1743137454482,-160.382396,0.00035616,14]
[356764213,1743137454492,-500.0,0.00035616,17]
[356764215,1743137454501,-500.0,0.00035616,17]
[356764217,1743137454511,-160.382396,0.00035616,14]
[356764219,1743137454520,-160.382396,0.00035616,14]
[356764221,1743137454529,-160.382396,0.00035616,14]
[356764223,1743137454539,-503.64,0.00035616,17]
[356764225,1743137454548,-160.382396,0.00035616,14]
[356764227,1743137454558,-1958.2,0.00035616,17]
[356764229,1743137454567,-160.382396,0.00035616,14]
[356764231,1743137454576,-160.382396,0.00035616,14]
[356764233,1743137454585,-5777.34,0.00035616,17]
[356764235,1743137454595,-500.0,0.00035616,17]
[356764237,1743137454604,-160.382396,0.00035616,14]
[356764239,1743137454615,-500.0,0.00035616,17]
[356764241,1743137454624,-160.382394,0.00035616,14]
[356764243,1743137454633,-2483.36,0.00035616,17]
[356764245,1743137454643,-500.0,0.00035616,17]
[356764247,1743137454652,-500.0,0.00035616,17]
[356764249,1743137454661,-514.21,0.00035616,17]
[356764251,1743137454670,-1938.35,0.00035616,17]
[356764253,1743137454680,-500.0,0.00035616,17]
[356764255,1743137454689,-500.0,0.00035616,17]
[356764257,1743137454698,-500.0,0.00035616,17]
[356764259,1743137454707,-553.47,0.00035616,17]
[356764261,1743137454716,-599.13037914,0.00035616,17]
[356764263,1743137454726,-500.0,0.00035616,17]
[356764265,1743137454735,-500.0,0.00035616,17]
[356764266,1743137454744,-866.5,0.00035616,17]
[356764269,1743137454753,-863.92,0.00035616,17]
[356764270,1743137454762,-849.33,0.00035616,17]
[356764273,1743137454771,-713.41,0.00035616,17]
[356764274,1743137454781,-16128.15,0.00035616,17]
[356764277,1743137454791,-500.0,0.00035616,17]
[356764279,1743137454800,-500.0,0.00035616,17]
[356764281,1743137454810,-500.0,0.00035616,17]
[356764283,1743137454819,-1344.72,0.00035616,17]
[356764284,1743137454828,-2131.53,0.00035616,17]
[356764286,1743137454838,-1669.9,0.00035616,17]
[356764289,1743137454848,-500.0,0.00035616,17]
[356764290,1743137454858,-1261.24,0.00035616,17]
[356764292,1743137454872,-500.0,0.00035616,17]
[356764295,1743137454884,-500.0,0.00035616,17]
[356764297,1743137454896,-885.94,0.00035616,17]
[356764298,1743137454906,-939.68,0.00035616,17]
[356764301,1743137454917,-500.0,0.00035616,17]
[356764303,1743137454927,-2457.33,0.00035616,17]
[356764304,1743137454936,-2939.82,0.00035616,17]
[356764306,1743137454945,-969.1,0.00035616,17]
[356764308,1743137454955,-500.0,0.00035616,17]
[356764310,1743137454966,-1351.86,0.00035616,17]
[356764312,1743137454975,-500.0,0.00035616,17]
[356764315,1743137454985,-500.0,0.00035616,17]
[356764316,1743137454994,-1260.2,0.00035616,17]
[356764318,1743137455004,-500.0,0.00035616,17]
[356764320,1743137455014,-500.0,0.00035616,17]
[356764323,1743137455023,-2547.77,0.00035616,17]
[356764325,1743137455034,-1339.61,0.00035616,17]
[356764327,1743137455043,-500.0,0.00035616,17]
[356764328,1743137455052,-500.0,0.00035616,17]
[356764330,1743137455062,-565.28414605,0.00035616,17]
[356764332,1743137455072,-500.0,0.00035616,17]
[356764334,1743137455082,-6878.21,0.00035616,17]
[356764336,1743137455092,-626.50114926,0.00035616,17]
[356764338,1743137455101,-1381.65,0.00035616,17]
[356764340,1743137455111,-3407.44,0.00035616,17]
[356764342,1743137455125,-500.0,0.00035616,7]
[356764344,1743137455134,-500.0,0.00035616,17]
[356764346,1743137455144,-7718.17,0.00035616,17]
[356764348,1743137455154,-447.77174157,0.00035616,7]
[356764350,1743137455163,-500.0,0.00035616,17]
[356764352,1743137455172,-500.0,0.00035616,17]
[356764354,1743137455181,-1608.51,0.00035616,17]
[356764356,1743137455191,-500.0,0.00035616,17]
[356764358,1743137455200,-528.75210792,0.00035616,17]
[356764360,1743137455210,-500.0,0.00035616,17]
[356764362,1743137455219,-500.0,0.00035616,17]
[356764364,1743137455228,-1034.01,0.00035616,17]
[356764366,1743137455238,-500.0,0.00035616,17]
[356764368,1743137455247,-620.34,0.00035616,17]
[356764370,1743137455256,-500.0,0.00035616,17]
[356764372,1743137455266,-500.0,0.00035616,17]
[356764374,1743137455275,-500.0,0.00035616,17]
[356764376,1743137455284,-527.90574235,0.00035616,17]
[356764378,1743137455293,-500.0,0.00035616,17]
[356764380,1743137455303,-4204.69,0.00035616,17]
[356764382,1743137455312,-28305.58,0.00035616,17]
[356764384,1743137455321,-724.03,0.00035616,17]
[356764386,1743137455330,-500.0,0.00035616,17]
[356764388,1743137455339,-11619.2,0.00035616,17]
[356764389,1743137455348,-558.74,0.00035616,17]
[356764391,1743137455358,-500.0,0.00035616,17]
[356764394,1743137455369,-500.0,0.00035616,17]
[356764395,1743137455379,-500.0,0.00035616,17]
[356764397,1743137455388,-500.0,0.00035616,17]
[356764399,1743137455399,-3479.14,0.00035616,17]
[356764401,1743137455409,-500.0,0.00035616,17]
[356764403,1743137455419,-500.0,0.00035616,17]
[356764405,1743137455428,-5579.42,0.00035616,17]
[356764407,1743137455438,-500.0,0.00035616,17]
[356764409,1743137455448,-500.0,0.00035616,17]
[356764411,1743137455458,-504.92050826,0.00035616,17]
[356764412,1743137455467,-500.0,0.00035616,17]
[356764413,1743137455476,-3804.9,0.00035616,17]
[356764414,1743137455485,-500.0,0.00035616,17]
[356764415,1743137455494,-500.0,0.00035616,17]
[356764416,1743137455504,-500.0,0.00035616,17]
[356764417,1743137455513,-500.0,0.00035616,17]
[356764418,1743137455522,-500.0,0.00035616,17]
[356764419,1743137455532,-1291.03,0.00035616,17]
[356764420,1743137455541,-500.0,0.00035616,17]
[356764421,1743137455551,-500.0,0.00035616,17]
[356764422,1743137455563,-625.46970667,0.00035616,17]
[356764423,1743137455572,-4985.68,0.00035616,17]
[356764425,1743137455582,-500.0,0.00035616,17]
[356764426,1743137455591,-527.39413793,0.00035616,17]
[356764427,1743137455600,-500.0,0.00035616,17]
[356764429,1743137455609,-7067.85,0.00035616,17]
[356764431,1743137455621,-1837.23,0.00035616,17]
[356764433,1743137455630,-500.0,0.00035616,17]
[356764435,1743137455644,-599.36734997,0.00035616,17]
[356764437,1743137455653,-500.0,0.00035616,17]
[356764439,1743137455663,-500.0,0.00035616,17]
[356764441,1743137455672,-500.0,0.00035616,17]
[356764443,1743137455681,-515.08748498,0.00035616,17]
[356764445,1743137455691,-500.0,0.00035616,17]
[356764447,1743137455700,-500.0,0.00035616,17]
[356764449,1743137455710,-500.0,0.00035616,17]
[356764451,1743137455719,-981.77,0.00035616,17]
[356764453,1743137455728,-17565.76,0.00035616,17]
[356764455,1743137455738,-500.0,0.00035873,5]
[356764457,1743137455747,-500.0,0.00035873,5]
[356764459,1743137455756,-521.49,0.0003589,17]
[356764461,1743137455765,-1364.9,0.0003589,17]
[356764463,1743137455775,-500.0,0.0003589,17]
[356764465,1743137455784,-553.56,0.0003589,17]
[356764467,1743137455793,-706.84,0.0003589,17]
[356764469,1743137455802,-500.0,0.0003589,17]
[356764471,1743137455811,-507.67,0.0003589,17]
[356764473,1743137455821,-6636.89,0.0003589,17]
[356764475,1743137455830,-500.0,0.0003589,17]
[356764477,1743137455839,-2915.13,0.0003589,17]
[356764479,1743137455848,-841.64,0.0003589,17]
[356764481,1743137455859,-500.0,0.0003589,17]
[356764483,1743137455873,-294609.39,0.0003589,7]
[356764485,1743137455886,-500.0,0.0003589,17]
[356764487,1743137455896,-1296.17,0.0003589,17]
[356764489,1743137455906,-500.0,0.0003589,17]
[356764491,1743137455915,-500.0,0.0003589,17]
[356764493,1743137455925,-6362.21,0.0003589,17]
[356764495,1743137455935,-1453.98,0.0003589,17]
[356764497,1743137455944,-500.0,0.0003589,17]
[356764499,1743137455954,-500.0,0.0003589,17]
[356764501,1743137455963,-759.11,0.0003589,17]
[356764504,1743137455984,-500.0,0.0003589,17]
[356764506,1743137455996,-8970.95,0.0003589,17]
[356764508,1743137456005,-1223.93,0.0003589,17]
[356764510,1743137456015,-857.26,0.0003589,17]
[356764512,1743137456026,-645.08,0.0003589,17]
[356764515,1743137456036,-500.0,0.0003589,17]
[356764517,1743137456046,-6513.94,0.0003589,17]
[356764519,1743137456055,-500.0,0.0003589,17]
[356764521,1743137456064,-500.0,0.0003589,17]
[356764522,1743137456074,-954.66,0.0003589,17]
[356764524,1743137456084,-1674.47,0.0003589,17]
[356764526,1743137456093,-680.1,0.0003589,17]
[356764528,1743137456103,-3479.2,0.0003589,17]
[356764530,1743137456112,-500.0,0.0003589,17]
[356764533,1743137456126,-28589.62,0.0003589,17]
[356764535,1743137456136,-684.53,0.0003589,17]
[356764537,1743137456145,-500.0,0.0003589,17]
[356764539,1743137456155,-500.0,0.0003589,17]
[356764541,1743137456164,-500.0,0.0003589,17]
[356764543,1743137456174,-473.16384322,0.0003589,17]
[356764545,1743137456183,-500.0,0.0003589,17]
[356764547,1743137456192,-2197.23,0.0003589,17]
[356764549,1743137456202,-724.99,0.0003589,17]
[356764551,1743137456211,-500.0,0.0003589,17]
[356764552,1743137456220,-500.0,0.0003589,17]
[356764554,1743137456230,-500.0,0.0003589,17]
[356764556,1743137456239,-1732.74,0.0003589,17]
[356764558,1743137456248,-3145.72,0.0003589,17]
[356764560,1743137456258,-500.0,0.0003589,17]
[356764562,1743137456268,-7662.24,0.0003589,17]
[356764564,1743137456278,-500.0,0.0003589,17]
[356764566,1743137456289,-500.0,0.0003589,17]
[356764569,1743137456299,-8045.31,0.0003589,17]
[356764571,1743137456310,-278.07,0.0003589,17]
[356764573,1743137456319,-500.0,0.0003589,17]
[356764575,1743137456329,-500.0,0.0003589,17]
[356764577,1743137456339,-503.64,0.0003589,17]
[356764579,1743137456349,-1958.2,0.0003589,17]
[356764581,1743137456359,-5777.34,0.0003589,17]
[356764583,1743137456371,-500.0,0.0003589,17]
[356764585,1743137456381,-500.0,0.0003589,17]
[356764587,1743137456390,-2483.36,0.0003589,17]
[356764589,1743137456399,-500.0,0.0003589,17]
[356764591,1743137456408,-500.0,0.0003589,17]
[356764593,1743137456418,-514.21,0.0003589,17]
[356764595,1743137456428,-1938.35,0.0003589,17]
[356764597,1743137456437,-500.0,0.0003589,17]
[356764599,1743137456447,-500.0,0.0003589,17]
[356764601,1743137456457,-500.0,0.0003589,17]
[356764603,1743137456466,-553.47,0.0003589,17]
[356764605,1743137456476,-500.0,0.0003589,17]
[356764607,1743137456486,-500.0,0.0003589,17]
[356764609,1743137456496,-866.5,0.0003589,17]
[356764611,1743137456505,-863.92,0.0003589,17]
[356764613,1743137456514,-849.33,0.0003589,17]
[356764615,1743137456524,-713.41,0.0003589,17]
[356764617,1743137456534,-16128.15,0.0003589,17]
[356764619,1743137456544,-500.0,0.0003589,17]